[Event "Israel National League 2024"]
[Site "Israel"]
[Date "2024.03.01"]
[Round "9.3"]
[White "Efroimski, Marsel"]
[Black "Aizenberg, Benny"]
[Result "1/2-1/2"]
[ECO "B22"]
[WhiteElo "2434"]
[BlackElo "2396"]
[Annotator "TA"]
[PlyCount "48"]
[EventDate "2024.01.07"]
[EventType "team-tourn"]
[EventCountry "ISR"]
[SourceTitle "playchess.com"]
[Source "ChessBase"]
[SourceQuality "1"]
[TimeControl "40/5400+30:1800+30"]

{[%evp 22,48,0,-5,0,0,0,0,0,0,0,0,24,17,16,0,0,0,0,0,0,0,9,0,0,0,7,0,0]} 1. e4 {[%emt 0:00:01]} c5 {[%emt 0:00:05]} 2. c3 {[%emt 0:00:03]} Nf6 {[%emt 0:00:05]} 3. e5 {[%emt 0:00:04]} Nd5 {[%emt 0:00:03]} 4. Nf3 {[%emt 0:00:04]} Nc6 {[%emt 0:00:04]} 5. d4 {[%emt 0:00:16]} cxd4 {[%emt 0:00:05]} 6. cxd4 {[%emt 0:00:05]} d6 {[%emt 0:00:04]} 7. Bc4 {[%emt 0:00:05]} Nb6 {[%emt 0:00:14]} 8. Bb5 {[%emt 0:00:04]} dxe5 {[%emt 0:00:07]} 9. Nxe5 {[%emt 0:00:14]} Bd7 {[%emt 0:00:05]} 10. Nxd7 {[%emt 0:00:41]} Qxd7 {[%emt 0:00:05]} 11. Nc3 {[%emt 0:00:13]} e6 {[%emt 0:00:48]} 12. O-O {[%emt 0:00:05]} Rd8 {[%emt 0:00:02]} 13. Be3 {[%emt 0:00:05]} Be7 {[%emt 0:00:36]} 14. Qf3 {[%emt 0:00:11]} O-O {[%emt 0:07:14]} 15. Rfd1 {[%emt 0:00:34]} a6 {[%emt 0:07:06]} 16. Bxc6 {[%emt 0:00:05]} bxc6 {[%emt 0:01:18]} 17. Rac1 {[%emt 0:00:07]} a5 {[%emt 0:06:38] The position is equal.} 18. b3 {[%emt 0:05:29]} Ra8 {[%emt 0:06:05]} 19. h3 {[%emt 0:10:40]} Rfc8 {[%emt 0:07:18]} 20. Rc2 {[%emt 0:03:12]} h6 {[%emt 0:12:31]} 21. Qg4 {[%emt 0:10:37]} Kf8 {[%emt 0:05:16]} 22. Qe4 {[%emt 0:03:47]} Kg8 {[%emt 0:02:14] Prevents Qh7+} 23. Qg4 {[%emt 0:00:35]} Kf8 {[%emt 0:06:55]} 24. Qe4 {[%emt 0:00:09][%cal Od4d5] Strongly threatening d5!} Kg8 {[%emt 0:00:07] A rather calm draw.   Weighted Error Value: White=0.02 (flawless) /Black=0.02 (flawless) .  OK:         	White=6     	Black=6} 1/2-1/2

[Event "Israel National League 2024"]
[Site "Israel"]
[Date "2024.03.01"]
[Round "9.4"]
[White "Baron, Tal"]
[Black "Zemach, Nadav"]
[Result "1-0"]
[ECO "D45"]
[WhiteElo "2490"]
[BlackElo "2384"]
[Annotator "TA"]
[PlyCount "63"]
[EventDate "2024.01.07"]
[EventType "team-tourn"]
[EventCountry "ISR"]
[SourceTitle "playchess.com"]
[Source "ChessBase"]
[SourceQuality "1"]
[TimeControl "40/5400+30:1800+30"]

{[%evp 18,63,0,0,0,0,-5,-12,0,0,10,-36,16,0,0,0,6,-21,0,0,0,0,0,-14,127,127,130,130,306,289,295,291,655,644,624,646,922,927,944,927,1207,827,895,887,977,961,6624,6387]} 1. c4 {[%emt 0:00:08]} c6 {[%emt 0:02:11]} 2. Nf3 {[%emt 0:00:06]} d5 {[%emt 0:00:21]} 3. e3 {[%emt 0:00:04]} Nf6 {[%emt 0:00:41]} 4. Nc3 {[%emt 0:00:03]} e6 {[%emt 0:00:21]} 5. d4 {[%emt 0:00:34]} Nbd7 {[%emt 0:00:28]} 6. Be2 {[%emt 0:00:05]} Bd6 {[%emt 0:00:54]} 7. O-O {[%emt 0:00:06]} O-O {[%emt 0:00:26]} 8. b3 {[%emt 0:00:17]} b6 {[%emt 0:00:14]} 9. Bb2 {[%emt 0:00:03]} Bb7 {[%emt 0:00:06]} 10. Rc1 {[%emt 0:01:03]} Rc8 {[%emt 0:02:55]} 11. h3 {[%emt 0:00:03]} Qe7 {[%emt 0:02:28]} 12. Re1 {[%emt 0:00:26]} Rfd8 {[%emt 0:03:24] The position is equal.} 13. Bd3 {[%emt 0:00:24]} Bb4 {[%emt 0:07:15]} 14. Re2 {[%emt 0:07:34]} (14. cxd5 $11 {feels stronger.} exd5 15. Re2) 14... h6 {[%emt 0:07:33] [#]} (14... dxc4 $15 15. Bxc4 c5) 15. a3 $1 {[%emt 0:02:06]} Bxc3 {[%emt 0:01:50]} 16. Bxc3 {[%emt 0:03:20]} c5 {[%emt 0:01:16]} 17. cxd5 {[%emt 0:10:18]} Nxd5 {[%emt 0:02:18] Threatens to win with ...cxd4.} 18. Bb2 {[%emt 0:00:28]} cxd4 {[%emt 0:01:54] aiming for ...Nc3.} 19. Nxd4 {[%emt 0:01:41]} Nc5 {[%emt 0:06:29] ...e5 would now be deadly.} 20. Bb1 {[%emt 0:04:14]} e5 {[%emt 0:14:15]} (20... Qg5 $11 21. f4 Qg3) 21. Nf5 $16 {[%emt 0:00:51]} Qg5 {[%emt 0:00:09] [#]} 22. h4 $1 {[%emt 0:05:30]} (22. Bxe5 $2 Nc3 23. f3 Rxd1+ $19 (23... Nxd1 $2 24. h4 $19)) 22... Qf6 {[%emt 0:22:00] Loses the game.} (22... Qxg2+ $16 {was called for.} 23. Kxg2 Nxe3+ 24. Kg1 Nxd1 25. Bxe5 f6 (25... Nxb3 $2 {too greedy.} 26. Ne7+ Kf8 27. Rxc8 $18)) 23. Rd2 $18 {[%emt 0:03:04]} Nc7 {[%emt 0:09:56]} 24. b4 {[%emt 0:22:26]} Nb3 {[%emt 0:04:22]} (24... Rxd2 25. Qxd2 N5e6) 25. Rxd8+ {[%emt 0:01:00] White is clearly winning.} Rxd8 {[%emt 0:04:30]} 26. Qxb3 {[%emt 0:00:03]} Nd5 {[%emt 0:00:13]} 27. Rd1 {[%emt 0:00:57]} g6 {[%emt 0:00:15]} 28. Nxh6+ {[%emt 0:01:31]} Kh7 {[%emt 0:00:15]} 29. Be4 {[%emt 0:01:28]} Kxh6 {[%emt 0:04:12]} 30. Bxd5 {[%emt 0:00:10]} Rxd5 {[%emt 0:00:14]} 31. Rxd5 {[%emt 0:00:04]} Qc6 {[%emt 0:00:04]} 32. e4 {[%emt 0:00:12] Weighted Error Value: White=0.11 (very precise) /Black=0.66.  Loses game:     	---       	Black=1      Mistake:       	White=1     	Black=3      Inaccurate:     	White=1     	---        OK:         	White=4     	Black=5      Best:        	White=3     	---        Strong:       	White=1     	---} (32. Rxe5 $2 Qxg2#) 1-0

[Event "Israel National League 2024"]
[Site "Israel"]
[Date "2024.03.01"]
[Round "9.5"]
[White "Vagman, Roy"]
[Black "Flom, Gabriel"]
[Result "1-0"]
[ECO "B07"]
[WhiteElo "2302"]
[BlackElo "2421"]
[Annotator "TA"]
[PlyCount "91"]
[EventDate "2024.01.07"]
[EventType "team-tourn"]
[EventCountry "ISR"]
[SourceTitle "playchess.com"]
[Source "ChessBase"]
[SourceQuality "1"]
[TimeControl "40/5400+30:1800+30"]

{[%evp 12,91,34,18,56,29,69,30,138,129,119,114,114,111,121,112,117,110,110,102,115,109,116,103,116,45,41,19,95,26,45,22,31,23,22,20,38,16,14,10,60,56,75,60,56,46,107,16,24,31,192,151,239,249,349,349,315,321,428,409,310,97,247,98,89,20,540,516,1143,1022,572,17,3183,2362,6654,6156,5552,5014,29965,29964,29980,29981]} 1. e4 {[%emt 0:00:06]} d6 {[%emt 0:00:05]} 2. d4 {[%emt 0:00:06]} Nf6 {[%emt 0:00:04]} 3. Nc3 {[%emt 0:00:06]} e5 {[%emt 0:00:04]} 4. Nge2 {[%emt 0:00:08]} c6 {[%emt 0:00:40]} 5. h3 {[%emt 0:01:46]} Be7 {[%emt 0:00:16]} 6. g4 {[%emt 0:00:49] B07: Pirc Defence: Miscellaneous Systems.} O-O {[%emt 0:03:20]} 7. Bg2 {[%emt 0:01:45]} exd4 {[%emt 0:01:04]} 8. Qxd4 {[%emt 0:01:45]} Nbd7 $146 {[%emt 0:03:49]} ({Predecessor:} 8... Be6 9. g5 Nfd7 10. f4 f5 11. Ng3 fxe4 12. Qxe4 Nc5 13. Qe2 Qd7 14. Be3 Nba6 {0-1 Kostenko,P (2418)-Tsoi,D (2334) Cheliabinsk Variant Gp-A 2021 (8)}) 9. Be3 {[%emt 0:01:41]} d5 {[%emt 0:02:31]} (9... b5 $11 {remains equal.}) 10. exd5 $16 {[%emt 0:09:46]} Bc5 {[%emt 0:00:02]} 11. Qd2 {[%emt 0:00:24]} Bxe3 {[%emt 0:00:07]} 12. Qxe3 {[%emt 0:06:39]} (12. fxe3 $6 Nxd5 13. O-O-O Nxc3 14. Qxc3 (14. Nxc3 Qa5 $11) 14... Qg5 $11) 12... Re8 {[%emt 0:00:17]} 13. Qd2 {[%emt 0:07:05]} Nxd5 {[%emt 0:00:05]} 14. Nxd5 {[%emt 0:00:14]} cxd5 {[%emt 0:00:02]} 15. O-O-O $1 {[%emt 0:02:34]} (15. Qxd5 $6 Qe7 16. Qd2 Qe5 $11) 15... Nb6 {[%emt 0:00:02]} 16. Nc3 {[%emt 0:00:56]} (16. Bxd5 $6 Qxd5 17. Qxd5 Nxd5 18. Rxd5 h5 $11) 16... Be6 {[%emt 0:01:04]} 17. f4 {[%emt 0:03:25]} f5 {[%emt 0:11:39]} 18. Nxd5 {[%emt 0:11:24]} ({White should try} 18. g5 $16) 18... fxg4 $14 {[%emt 0:01:56]} ({Wrong is} 18... Nxd5 $2 19. gxf5 (19. Bxd5 Qxd5 20. Qxd5 Bxd5 $16) 19... Qc7 20. Bxd5 (20. fxe6 Nxf4 21. Qd7 Rac8 $16) 20... Bxd5 21. Qxd5+ Kh8 22. Qd6 $18) 19. hxg4 {[%emt 0:00:31]} (19. Ne3 {with more complications.} Qxd2+ 20. Rxd2 gxh3 21. Bxb7 Rab8 22. Bc6) 19... Nxd5 {[%emt 0:01:29]} (19... Bxd5 $1 $11 20. Bxd5+ Qxd5 21. Qxd5+ Nxd5 22. Rxd5 Re4) 20. Bxd5 {[%emt 0:00:11]} ({White should play} 20. f5 $1 $16 {[%cal Rf5e6]} Bf7 21. Bxd5 Bxd5 22. Qxd5+ Qxd5 23. Rxd5) 20... Bxd5 $11 {[%emt 0:00:21]} 21. Qxd5+ {[%emt 0:00:19]} Qxd5 {[%emt 0:00:04]} 22. Rxd5 {[%emt 0:00:13]} Re4 {[%emt 0:00:02]} 23. Rf5 {[%emt 0:11:13]} Rd8 {[%emt 0:00:33]} 24. Rf1 {[%emt 0:05:22]} b6 {[%emt 0:03:00]} 25. g5 {[%emt 0:13:23]} Re2 {[%emt 0:00:04]} (25... Rd7 $11) 26. Rd1 $14 {[%emt 0:01:16]} Rxd1+ {[%emt 0:00:32]} 27. Kxd1 {[%emt 0:00:01]} Rf2 {[%emt 0:00:11]} 28. a4 {[%emt 0:03:23]} g6 {[%emt 0:00:33]} (28... h5 $14) 29. Rf6 {[%emt 0:04:40]} (29. Rd5 $1 $16) 29... Kg7 $11 {[%emt 0:00:04]} 30. Rc6 {[%emt 0:09:27]} Rxf4 $2 {[%emt 0:00:23]} (30... h5 $1 $14) 31. Rc7+ $1 $18 {[%emt 0:00:00]} Kg8 {[%emt 0:10:17]} (31... Rf7 32. Rxf7+ Kxf7 33. b4 $18) (31... Kf8 $16 {might work better.}) 32. Rxa7 $18 {[%emt 0:00:02]} Rg4 {[%emt 0:00:04] [#]} (32... Rb4 $142 33. b3 Rg4) 33. a5 $1 $18 {[%emt 0:01:08]} bxa5 {[%emt 0:00:02]} 34. Rxa5 {[%emt 0:00:13]} h5 {[%emt 0:00:02]} 35. gxh6 {[%emt 0:00:10]} Kh7 {[%emt 0:00:00]} 36. Rc5 $2 {[%emt 0:00:50]} (36. c3 $18 {is more deadly.}) 36... g5 {[%emt 0:00:08]} (36... Rb4 $16 {was worth a try.}) 37. Ke2 {[%emt 0:02:38]} ({But not} 37. Rc6 Rf4 38. b3 Re4) (37. c4 $18) 37... Kxh6 $16 {[%emt 0:00:06]} 38. Kf3 {[%emt 0:00:31]} (38. b3 $16) 38... Rg1 $2 {[%emt 0:00:07][%mdl 8192]} (38... Rb4 $11) 39. b4 $18 {[%emt 0:01:06]} Kh5 {[%emt 0:00:11]} (39... Rf1+ $142 40. Ke3 g4) 40. b5 $18 {[%emt 0:00:55]} Kh4 {[%emt 0:01:03] [#]} 41. Rc8 $2 {[%emt 0:31:36]} ({White must play} 41. Rc7 $1 $18 {[%cal Rc7h7]} g4+ 42. Kf4 Rf1+ 43. Ke4) 41... Rf1+ $2 {[%emt 0:30:19][%mdl 8192]} (41... g4+ $11 42. Ke2 g3) 42. Ke4 $18 {[%emt 0:00:41]} g4 {[%emt 0:00:11]} 43. c4 {[%emt 0:00:41]} g3 {[%emt 0:00:03]} 44. Rg8 {[%emt 0:00:00]} Re1+ {[%emt 0:00:00]} 45. Kd5 {[%emt 0:00:00]} Rf1 {[%emt 0:00:00]} 46. b6 {[%emt 0:00:00]} 1-0

[Event "Israel National League 2024"]
[Site "Israel"]
[Date "2024.03.01"]
[Round "9.6"]
[White "Deutsch, Eyal"]
[Black "Guz, Ari"]
[Result "1/2-1/2"]
[ECO "B13"]
[WhiteElo "2289"]
[BlackElo "2291"]
[Annotator "TA"]
[PlyCount "61"]
[EventDate "2024.01.07"]
[EventType "team-tourn"]
[EventCountry "ISR"]
[SourceTitle "playchess.com"]
[Source "ChessBase"]
[SourceQuality "1"]
[TimeControl "40/5400+30:1800+30"]

{[%evp 12,61,11,17,19,-1,-5,-17,-30,-32,-27,-23,-31,-42,-42,-47,-50,-61,-32,-42,0,-60,-48,-30,-47,-63,-35,-56,-78,-85,-72,-94,-54,-63,-47,-47,-27,-50,-35,-55,-58,-85,0,-19,-15,-60,16,11,12,9,5,9]} 1. e4 {[%emt 0:00:01]} c6 {[%emt 0:03:21]} 2. d4 {[%emt 0:00:06]} d5 {[%emt 0:00:06]} 3. exd5 {[%emt 0:00:03]} cxd5 {[%emt 0:00:10]} 4. Bd3 {[%emt 0:00:04]} Nc6 {[%emt 0:00:29]} 5. c3 {[%emt 0:00:07]} Nf6 {[%emt 0:00:24]} 6. Bf4 {[%emt 0:00:08]} Bg4 {[%emt 0:00:26]} 7. Qb3 {[%emt 0:00:11]} e5 {[%emt 0:00:38]} 8. Bxe5 {[%emt 0:00:35]} Qe7 {[%emt 0:02:43][%cal Oe8c8]} 9. Kf1 {[%emt 0:00:59] Zielt auf Bxf6 ab.} Nxe5 {[%emt 0:02:23]} 10. dxe5 {[%emt 0:00:06]} Qxe5 {[%emt 0:00:07]} 11. Bb5+ {[%emt 0:00:42]} Kd8 {[%emt 0:09:01]} 12. Nd2 {[%emt 0:00:19]} Bc5 {[%emt 0:01:15]} 13. Ngf3 {[%emt 0:06:32]} Qd6 {[%emt 0:04:54]} 14. Bd3 {[%emt 0:00:54]} Re8 {[%emt 0:05:33]} 15. h3 {[%emt 0:01:27]} Bh5 {[%emt 0:05:13]} 16. Rd1 {[%emt 0:02:32]} (16. g4 $11 Bg6 17. Bxg6 hxg6 18. Kg2 (18. Qxb7 $2 {zu gefräßig.} Rb8 $19)) 16... Kc7 $15 {[%emt 0:07:11]} 17. g4 {[%emt 0:13:56]} Bg6 {[%emt 0:02:37]} 18. Bxg6 {[%emt 0:06:16]} hxg6 {[%emt 0:03:03]} 19. Qb5 {[%emt 0:14:20]} a6 {[%emt 0:02:38]} 20. Qa5+ {[%emt 0:03:11]} Bb6 {[%emt 0:01:57]} 21. Qa4 {[%emt 0:00:13]} Rad8 {[%emt 0:06:26]} 22. Kg2 {[%emt 0:04:14][%cal Od2c4]} Re2 {[%emt 0:05:23]} 23. Rhf1 {[%emt 0:05:53]} Kb8 {[%emt 0:01:42]} 24. Ng1 {[%emt 0:02:33]} ({Jedoch nicht} 24. Nc4 $2 Qc7 25. Ncd2 (25. Nxb6 $2 Ne4 $19) 25... Ne4 26. Nxe4 dxe4 27. Rxd8+ Qxd8 $19) 24... Re6 {[%emt 0:03:30]} (24... Rxd2 {vereinfacht} 25. Rxd2 Ne4 26. Qxe4 dxe4 27. Rxd6 Rxd6 28. Re1 f5) 25. Nc4 {[%emt 0:02:49]} Qc7 {[%emt 0:00:43]} 26. Nxb6 {[%emt 0:00:16]} Qxb6 {[%emt 0:00:07]} ({Besser ist} 26... Rxb6 $17 27. Qc2 d4) 27. Qc2 {[%emt 0:08:15]} d4 {[%emt 0:02:48]} 28. cxd4 {[%emt 0:01:20]} Rxd4 {[%emt 0:00:48]} ({Günstiger ist} 28... Nd5 $15) 29. Rxd4 {[%emt 0:00:53] Die Stellung ist ausgeglichen.} Qxd4 {[%emt 0:00:35]} 30. Rd1 {[%emt 0:00:24]} Qe4+ {[%emt 0:04:53]} 31. Qxe4 {[%emt 0:01:23] Gewichteter Fehlerwert: Weiß=0.11 (sehr präzise) /Schwarz=0.19 (sehr präzise) .  Fehler:       	Weiß=1     	Schwarz=2     Ungenau:       	Weiß=1     	Schwarz=4     OK:         	Weiß=8     	Schwarz=9     Bester:       	Weiß=2     	Schwarz=1} 1/2-1/2

[Event "Israel National League 2024"]
[Site "Israel"]
[Date "2024.03.01"]
[Round "9.7"]
[White "Rechlis, Gad"]
[Black "Nabaty, Tamir"]
[Result "0-1"]
[ECO "A08"]
[WhiteElo "2473"]
[BlackElo "2646"]
[Annotator "TA"]
[PlyCount "74"]
[EventDate "2024.01.07"]
[EventType "team-tourn"]
[EventCountry "ISR"]
[SourceTitle "playchess.com"]
[Source "ChessBase"]
[SourceQuality "1"]
[TimeControl "40/5400+30:1800+30"]

{[%evp 9,74,-28,14,12,0,0,0,0,0,0,-17,-11,-7,-16,-21,-14,-8,-54,-72,-84,-87,-106,-81,-77,-79,-110,-106,-91,-91,-96,-75,-139,-105,-201,-197,-240,-159,-231,-116,-116,-120,-110,-111,-119,-120,-125,-124,-139,-78,-84,-91,-128,0,-107,-96,-113,-118,-112,-114,-134,-131,-174,-147,-1294,-1294,-1294,-1270]} 1. Nf3 {[%emt 0:08:46]} d5 {[%emt 0:00:18]} 2. g3 {[%emt 0:00:03]} c5 {[%emt 0:00:29]} 3. Bg2 {[%emt 0:10:15]} Nc6 {[%emt 0:00:32]} 4. c4 {[%emt 0:01:10]} dxc4 {[%emt 0:01:18]} 5. Na3 {[%emt 0:05:50]} g6 {[%emt 0:15:55]} 6. Nxc4 {[%emt 0:04:28]} Bg7 {[%emt 0:01:01]} 7. d3 {[%emt 0:00:19]} Nf6 {[%emt 0:01:46]} 8. Be3 {[%emt 0:00:38] The position is equal.} Nd5 {[%emt 0:07:27]} 9. Bxc5 {[%emt 0:02:48]} b6 $1 {[%emt 0:01:45]} 10. Be3 {[%emt 0:16:37]} (10. Qa4 {seems wilder.} Bd7 11. Ng5 Ncb4 12. Qd1) 10... b5 {[%emt 0:01:54]} 11. Ncd2 {[%emt 0:00:05]} Nxe3 {[%emt 0:07:53]} 12. fxe3 {[%emt 0:00:02]} O-O {[%emt 0:02:49]} (12... Bxb2 $2 13. Ng5 O-O 14. Bxc6 $18) 13. Nd4 {[%emt 0:23:57] [#]} Nxd4 $1 $15 {[%emt 0:00:56]} 14. Bxa8 {[%emt 0:00:02]} (14. exd4 Rb8) 14... Nf5 $36 {[%emt 0:00:24][%csl LRb2,LRe3][%cal Oc8e6][%mdl 2048] Black has strong initiative.} 15. Nf1 {[%emt 0:01:54]} Be6 {[%emt 0:07:02]} 16. Bf3 {[%emt 0:05:27]} Bxb2 {[%emt 0:00:35][%cal Ob5b4] aiming for ...b4!} 17. Rb1 {[%emt 0:00:13]} Bc3+ {[%emt 0:02:14]} 18. Kf2 {[%emt 0:00:01]} Qa5 {[%emt 0:02:35] Black has more active pieces. The white rooks are passive.} (18... Bxa2 $6 19. Rxb5 Be6 20. h4 $14) 19. a3 {[%emt 0:17:25]} Nd6 {[%emt 0:07:47]} (19... Qxa3 20. Rxb5 Bf6 21. Qb1 $11) 20. h4 {[%emt 0:00:00]} (20. Rc1 $142) 20... Qxa3 $17 {[%emt 0:04:44]} 21. h5 {[%emt 0:00:00] White is weak on the dark squares} (21. Nd2 $17) 21... g5 $19 {[%emt 0:11:48]} 22. d4 {[%emt 0:00:00]} h6 {[%emt 0:02:33]} 23. e4 {[%emt 0:00:00]} (23. Nd2 $17) 23... Qa4 {[%emt 0:05:54]} (23... g4 $19 24. Bg2 Nc4) 24. Qxa4 $17 {[%emt 0:00:00]} bxa4 {[%emt 0:00:03]} 25. d5 {[%emt 0:00:00]} Bd7 {[%emt 0:01:25][%mdl 1024] White must now prevent ...g4. Black has strong compensation.} 26. Ne3 {[%emt 0:01:38]} Bd4 $1 {[%emt 0:05:06] A strong pair of Bishops.} 27. Rhd1 {[%emt 0:00:32]} Bb6 {[%emt 0:02:09]} 28. e5 {[%emt 0:01:36] [#]} Nc4 {[%emt 0:01:33]} ({Black should play} 28... Nf5 $1 {[%cal Rf5e3]} 29. Rxb6 axb6) 29. Rxb6 {[%emt 0:00:08]} Nxb6 {[%emt 0:00:45]} 30. Bg4 {[%emt 0:00:28] [#]} Rd8 {[%emt 0:03:05]} (30... e6 $1 $17 31. dxe6 Bxe6 (31... fxe6+ $2 32. Bf3 $19) 32. Bxe6 fxe6+ 33. Ke1 Rc8) 31. d6 {[%emt 0:00:50]} (31. Bxd7 $11 Rxd7 32. Kf3) 31... e6 {[%emt 0:01:41]} 32. Bf3 {[%emt 0:00:35]} Rc8 {[%emt 0:00:01]} 33. Ng4 {[%emt 0:00:14]} Kg7 {[%emt 0:00:01]} 34. Nf6 {[%emt 0:00:34]} Rc5 {[%emt 0:02:02]} 35. Rb1 {[%emt 0:00:01]} a3 {[%emt 0:00:00]} ({Not} 35... Rxe5 36. Nxd7 Nxd7 37. Rb7 $11) 36. Rxb6 $4 {[%emt 0:01:16][%mdl 8192]} (36. Ra1 $17 Ra5 (36... Rxe5 37. Nxd7 Nxd7 38. Rxa3 $11) 37. Ra2) 36... axb6 $19 {[%emt 0:00:07]} 37. Nxd7 {[%emt 0:00:08]} Rc8 {[%emt 0:00:34] Weighted Error Value: White=0.44/Black=0.19 (very precise) .  Loses game:     	White=1     	---        Mistake:       	White=5     	Black=3      Inaccurate:     	White=2     	Black=1      OK:         	White=11    	Black=15     Best:        	White=4     	Black=2      Strong:       	---       	Black=2} 0-1

[Event "Israel National League 2024"]
[Site "Israel"]
[Date "2024.03.01"]
[Round "9.8"]
[White "Roiz, Michael"]
[Black "Zoler, Dan"]
[Result "1-0"]
[ECO "A50"]
[WhiteElo "2575"]
[BlackElo "2460"]
[Annotator "TA"]
[PlyCount "79"]
[EventDate "2024.01.07"]
[EventType "team-tourn"]
[EventCountry "ISR"]
[SourceTitle "playchess.com"]
[Source "ChessBase"]
[SourceQuality "1"]
[TimeControl "40/5400+30:1800+30"]

{[%evp 15,79,37,43,28,53,25,24,23,53,47,54,47,77,72,76,58,141,140,118,89,150,100,159,141,142,120,122,118,111,118,243,209,229,227,207,215,222,190,201,178,324,315,297,182,493,492,471,489,748,729,622,451,434,425,412,395,394,362,375,394,456,439,545,577,531,506]} 1. Nf3 {[%emt 0:00:02]} Nf6 {[%emt 0:08:19]} 2. g3 {[%emt 0:00:23]} b6 {[%emt 0:00:23]} 3. d4 {[%emt 0:00:33]} Bb7 {[%emt 0:00:24]} 4. c4 {[%emt 0:00:07]} g6 {[%emt 0:00:35]} 5. Nc3 {[%emt 0:00:21]} Bg7 {[%emt 0:00:09]} 6. d5 {[%emt 0:00:10] A50: Queen's Fianchetto Defence (1 d4 Nf6 2 c4 b6).} O-O {[%emt 0:00:15]} 7. Bg2 {[%emt 0:00:05]} Na6 {[%emt 0:00:04]} 8. O-O {[%emt 0:00:25]} Nc5 {[%emt 0:00:09]} 9. Re1 {[%emt 0:09:28]} Ne8 $146 {[%emt 0:06:15]} ({Predecessor:} 9... e6 10. Be3 Nfe4 11. Nxe4 Nxe4 12. Bd4 c5 13. dxc6 dxc6 14. Bxg7 Kxg7 15. Qc2 c5 {½-½ Narayanan,S (2651)-Sindarov,J (2658) Qatar Masters op 2023 (7)}) 10. Qc2 {[%emt 0:17:17]} Nd6 {[%emt 0:03:21]} 11. b3 {[%emt 0:00:51]} a5 {[%emt 0:02:43]} 12. Bf4 {[%emt 0:05:25]} e6 {[%emt 0:11:15]} 13. Rad1 {[%emt 0:05:49]} Qe7 {[%emt 0:02:21]} 14. e4 {[%emt 0:06:36]} e5 {[%emt 0:01:24]} 15. Be3 {[%emt 0:00:05]} f5 {[%emt 0:22:03] [#]} (15... Rae8 $14) 16. exf5 $1 $16 {[%emt 0:17:10]} Rxf5 {[%emt 0:00:04]} 17. Nd2 {[%emt 0:01:47]} Qf8 {[%emt 0:06:02]} (17... Rff8 $142) 18. a3 {[%emt 0:03:53]} ({White should play} 18. Bxc5 bxc5 19. Nde4) 18... Bh6 {[%emt 0:06:16]} ({Better is} 18... Rf7) 19. b4 {[%emt 0:03:44]} axb4 {[%emt 0:02:26]} 20. axb4 {[%emt 0:00:29]} Bxe3 {[%emt 0:06:01]} 21. fxe3 {[%emt 0:00:04]} (21. Rxe3 Rxf2 22. Nb5 (22. bxc5 Nxc4 23. Rd3 Qxc5 $15) 22... Ne6 23. Nxd6 (23. Rxe5 Nxb5 24. cxb5 Qf6 $17) 23... Nd4 $11 (23... cxd6 24. Rf3 $14)) 21... Na6 {[%emt 0:00:08]} 22. Qb3 {[%emt 0:00:06]} e4 {[%emt 0:03:31]} (22... Kg7 $16 23. Na4 b5) 23. Rb1 {[%emt 0:09:04]} (23. Bxe4 Nxe4 24. Ncxe4 Qxb4 $14) 23... Re8 {[%emt 0:01:09]} 24. Ndxe4 {[%emt 0:01:56]} (24. Bxe4 Rfe5 $11) 24... Nxe4 {[%emt 0:04:58]} 25. Nxe4 {[%emt 0:00:29]} (25. Bxe4 $6 Rfe5 $16) 25... Qg7 {[%emt 0:00:06]} 26. Qc3 {[%emt 0:04:55]} Rfe5 {[%emt 0:02:13]} 27. Nf2 {[%emt 0:00:51]} c5 {[%emt 0:01:00]} (27... d6 {was necessary.} 28. e4 R5e7 29. Qxg7+ Kxg7) 28. bxc5 $18 {[%emt 0:01:52]} Nxc5 {[%emt 0:00:05]} 29. Ng4 {[%emt 0:00:25]} (29. Rxb6 Na4 30. Qd4 Nxb6 31. Qxb6 Bc8 $16) 29... R5e7 $2 {[%emt 0:01:05]} (29... Rf5 {is a better chance.} 30. Qxg7+ Kxg7) 30. Nf6+ $18 {[%emt 0:03:49]} ({Not} 30. Qxg7+ Kxg7 31. Rxb6 Rf7 $18) 30... Kh8 {[%emt 0:00:10]} 31. Qd4 {[%emt 0:00:07]} ({Don't do} 31. Rxb6 Na4 $18) 31... Rc8 {[%emt 0:06:21]} (31... Rd8 $142 32. Rxb6 d6) 32. Rxb6 $18 {[%emt 0:00:28]} Rf7 {[%emt 0:00:23]} 33. Ne4 {[%emt 0:02:22]} Nxe4 {[%emt 0:00:54]} 34. Bxe4 {[%emt 0:00:08]} d6 {[%emt 0:02:45]} 35. Bd3 {[%emt 0:01:12]} ({Less strong is} 35. Rxd6 Qxd4 36. exd4 Rxc4 $18) 35... Rd8 {[%emt 0:00:39]} 36. Rf1 {[%emt 0:00:34]} Qxd4 {[%emt 0:00:37]} 37. exd4 {[%emt 0:00:04]} Re7 {[%emt 0:00:04]} 38. Rf6 {[%emt 0:02:20]} Re3 {[%emt 0:00:22]} 39. Bf1 {[%emt 0:01:30]} Bc8 {[%emt 0:00:47]} 40. Rbxd6 {[%emt 0:00:41]} 1-0